fUSD/lending_fUSD_20250101
["ID","MTS","AMOUNT","RATE_DAILY","PERIOD"]
[347397874,1735763432706,-500.0,0.00010958,2]
[347397876,1735763432715,-500.0,0.00010958,2]
[347397878,1735763432724,-500.0,0.00010958,2]
[347397880,1735763432733,-500.0,0.00010958,2]
[347397882,1735763432742,-630.11,0.00010958,2]
[347397884,1735763432751,-954.96,0.00010958,2]
[347397886,1735763432760,-500.0,0.00010958,2]
[347397888,1735763432769,-500.0,0.00010958,2]
[347397890,1735763432778,-500.0,0.00010958,2]
[347397892,1735763432787,-500.0,0.00010958,2]
[347397894,1735763432796,-1037.24,0.00010958,2]
[347397896,1735763432806,-500.0,0.00010958,2]
[347397898,1735763432815,-644.85,0.00010958,2]
[347397900,1735763432824,-1161.89,0.00010958,2]
[347397902,1735763432833,-968.26,0.00010958,2]
[347397904,1735763432842,-500.0,0.00010958,2]
[347397906,1735763432852,-1211.72,0.00010958,2]
[347397908,1735763432862,-500.0,0.00010958,2]
[347397910,1735763432871,-500.0,0.00010958,2]
[347397912,1735763432880,-500.0,0.00010958,2]
[347397914,1735763432889,-500.0,0.00010958,2]
[347397916,1735763432900,-500.0,0.00010958,2]
[347397917,1735763432910,-738.62,0.00010958,2]
[347397920,1735763432919,-543.7685035,0.00010958,2]
[347397954,1735763432928,-500.0,0.00010958,2]
[347397957,1735763433248,-239.57452358,0.00010958,2]
[347397959,1735763433258,-584.21542648,0.00010958,2]
[347397961,1735763433267,-500.0,0.00010958,2]
[347397963,1735763433277,-500.0,0.00010958,2]
[347397965,1735763433286,-1118.96,0.00010958,2]
[347397967,1735763433295,-500.0,0.00010958,2]
[347397969,1735763433304,-548.15,0.00010958,2]
[347397971,1735763433316,-4595.52,0.00010958,2]
[347397973,1735763433325,-500.0,0.00010958,2]
[347397975,1735763433334,-500.0,0.00010958,2]
[347397977,1735763433344,-654.77,0.00010958,2]
[347397979,1735763433353,-1072.17,0.00010958,2]
[347397981,1735763433362,-574.67,0.00010958,2]
[347397983,1735763433372,-500.0,0.00010958,2]
[347397985,1735763433381,-1699.56,0.00010958,2]
[347397987,1735763433391,-500.0,0.00010958,2]
[347397989,1735763433400,-508.12,0.00010958,2]
[347397991,1735763433409,-500.0,0.00010958,2]
[347397993,1735763433418,-500.0,0.00010958,2]
[347397995,1735763433429,-500.0,0.00010958,2]
[347397997,1735763433439,-500.0,0.00010958,2]
[347397999,1735763433448,-500.0,0.00010958,2]
[347398001,1735763433458,-500.0,0.00010958,2]
[347398003,1735763433467,-587.34,0.00010958,2]
[347398005,1735763433476,-999.75,0.00010958,2]
[347398007,1735763433485,-500.0,0.00010958,2]
[347398009,1735763433495,-664.53,0.00010958,2]
[347398011,1735763433504,-500.0,0.00010958,2]
[347398013,1735763433515,-579.99,0.00010958,2]
[347398015,1735763433524,-500.0,0.00010958,2]
[347398017,1735763433533,-500.0,0.00010958,2]
[347398019,1735763433543,-500.0,0.00010958,2]
[347398021,1735763433552,-6053.99,0.00010958,2]
[347398023,1735763433562,-500.0,0.00010958,2]
[347398025,1735763433571,-500.0,0.00010958,2]
[347398027,1735763433581,-633.87,0.00010958,2]
[347398028,1735763433591,-500.0,0.00010958,2]
[347398030,1735763433601,-583.28,0.00010958,2]
[347398032,1735763433611,-500.0,0.00010958,2]
[347398034,1735763433621,-500.0,0.00010958,2]
[347398035,1735763433631,-850.41,0.00010958,2]
[347398037,1735763433640,-500.0,0.00010958,2]
[347398039,1735763433650,-500.0,0.00010958,2]
[347398041,1735763433659,-500.0,0.00010958,2]
[347398043,1735763433669,-500.0,0.00010958,2]
[347398045,1735763433678,-500.0,0.00010958,2]
[347398047,1735763433689,-500.0,0.00010958,2]
[347398049,1735763433698,-500.0,0.00010958,2]
[347398051,1735763433708,-500.0,0.00010958,2]
[347398053,1735763433718,-500.0,0.00010958,2]
[347398055,1735763433727,-535.68,0.00010958,2]
[347398057,1735763433737,-500.0,0.00010958,2]
[347398059,1735763433747,-500.0,0.00010958,2]
[347398061,1735763433757,-12296.09,0.00010958,2]
[347398063,1735763433767,-523.05,0.00010958,2]
[347398065,1735763433776,-500.0,0.00010958,2]
[347398067,1735763433786,-600.91,0.00010958,2]
[347398069,1735763433796,-500.0,0.00010958,2]
[347398071,1735763433805,-500.0,0.00010958,2]
[347398073,1735763433815,-500.0,0.00010958,2]
[347398075,1735763433824,-500.0,0.00010958,2]
[347398077,1735763433834,-951.31,0.00010958,2]
[347398079,1735763433843,-914.46,0.00010958,2]
[347398081,1735763433852,-500.0,0.00010958,2]
[347398083,1735763433861,-1049.74,0.00010958,2]
[347398085,1735763433870,-535.76,0.00010958,2]
[347398086,1735763433879,-500.0,0.00010958,2]
[347398089,1735763433889,-500.0,0.00010958,2]
[347398090,1735763433902,-500.0,0.00010958,2]
[347398092,1735763433911,-500.0,0.00010958,2]
[347398094,1735763433921,-937.6,0.00010958,2]
[347398096,1735763433932,-1225.2,0.00010958,2]
[347398098,1735763433942,-697.72,0.00010958,2]
[347398100,1735763433951,-1672.71,0.00010958,2]
[347398102,1735763433960,-500.0,0.00010958,2]
[347398105,1735763433971,-535.11,0.00010958,2]
[347398106,1735763433980,-500.0,0.00010958,2]
[347398108,1735763433990,-592.51,0.00010958,2]
[347398110,1735763433999,-733.19,0.00010958,2]
[347398112,1735763434008,-500.0,0.00010958,2]
[347398114,1735763434017,-500.0,0.00010958,2]
[347398116,1735763434026,-500.0,0.00010958,2]
[347398118,1735763434036,-500.0,0.00010958,2]
[347398120,1735763434045,-5640.17,0.00010958,2]
[347398122,1735763434054,-500.0,0.00010958,2]
[347398124,1735763434064,-996.94,0.00010958,2]
[347398126,1735763434075,-500.0,0.00010958,2]
[347398128,1735763434084,-500.0,0.00010958,2]
[347398130,1735763434093,-1256.89,0.00010958,2]
[347398132,1735763434102,-500.0,0.00010958,2]
[347398134,1735763434111,-500.0,0.00010958,2]
[347398136,1735763434120,-620.18,0.00010958,2]
[347398138,1735763434130,-500.0,0.00010958,2]
[347398140,1735763434139,-598.15,0.00010958,2]
[347398142,1735763434148,-500.0,0.00010958,2]
[347398144,1735763434157,-1282.58,0.00010958,2]
[347398146,1735763434166,-500.0,0.00010958,2]
[347398147,1735763434175,-500.0,0.00010958,2]
[347398149,1735763434186,-769.62,0.00010958,2]
[347398152,1735763434195,-697.14,0.00010958,2]
[347398153,1735763434204,-500.0,0.00010958,2]
[347398155,1735763434213,-661.02,0.00010958,2]
[347398157,1735763434222,-500.0,0.00010958,2]
[347398159,1735763434231,-500.0,0.00010958,2]
[347398160,1735763434242,-1893.45,0.00010958,2]
[347398161,1735763434251,-500.0,0.00010958,2]
[347398162,1735763434259,-500.0,0.00010958,2]
[347398163,1735763434268,-500.0,0.00010958,2]
[347398164,1735763434277,-762.85,0.00010958,2]
[347398165,1735763434286,-774.02,0.00010958,2]
[347398166,1735763434295,-500.0,0.00010958,2]
[347398167,1735763434304,-657.13,0.00010958,2]
[347398168,1735763434313,-500.0,0.00010958,2]
[347398169,1735763434322,-500.0,0.00010958,2]
[347398170,1735763434331,-500.0,0.00010958,2]
[347398171,1735763434339,-256.04889466,0.00010958,2]
[347398172,1735763434348,-500.0,0.00010958,2]
[347398173,1735763434357,-1152.25,0.00010958,2]
[347398174,1735763434366,-500.0,0.00010958,2]
[347398175,1735763434376,-500.0,0.00010958,2]
[347398176,1735763434385,-620.04,0.00010958,2]
[347398177,1735763434394,-500.0,0.00010958,2]
[347398178,1735763434403,-500.0,0.00010958,2]
[347398179,1735763434413,-11841.17,0.00010958,2]
[347398180,1735763434422,-500.0,0.00010958,2]
[347398181,1735763434431,-544.12,0.00010958,2]
[347398182,1735763434442,-506.8,0.00010958,2]
[347398183,1735763434451,-836.67,0.00010958,2]
[347398184,1735763434463,-500.0,0.00010958,2]
[347398185,1735763434472,-985.97,0.00010958,2]
[347398186,1735763434482,-660.28,0.00010958,2]
[347398187,1735763434490,-500.0,0.00010958,2]
[347398188,1735763434500,-618.39,0.00010958,2]
[347398189,1735763434509,-500.0,0.00010958,2]
[347398190,1735763434519,-500.0,0.00010958,2]
[347398191,1735763434528,-500.0,0.00010958,2]
[347398192,1735763434537,-500.0,0.00010958,2]
[347398193,1735763434546,-1424.08,0.00010958,2]
[347398194,1735763434555,-729.04,0.00010958,2]
[347398195,1735763434564,-500.0,0.00010958,2]
[347398196,1735763434573,-1011.03,0.00010958,2]
[347398197,1735763434582,-500.0,0.00010958,2]
[347398198,1735763434591,-1214.72,0.00010958,2]
[347398199,1735763434600,-1292.01,0.00010958,2]
[347398200,1735763434609,-500.0,0.00010958,2]
[347398201,1735763434619,-1588.02,0.00010958,2]
[347398202,1735763434628,-1037.67,0.00010958,2]
[347398203,1735763434637,-500.0,0.00010958,2]
[347398204,1735763434646,-500.0,0.00010958,2]
[347398205,1735763434655,-1126.17,0.00010958,2]
[347398206,1735763434665,-500.0,0.00010958,2]
[347398207,1735763434674,-4750.6,0.00010958,2]
[347398208,1735763434682,-566.27,0.00010958,2]
[347398209,1735763434692,-500.0,0.00010958,2]
[347398210,1735763434701,-500.0,0.00010958,2]
[347398211,1735763434712,-569.2,0.00010958,2]
[347398212,1735763434721,-500.0,0.00010958,2]
[347398213,1735763434730,-500.0,0.00010958,2]
[347398214,1735763434739,-1618.54,0.00010958,2]
[347398215,1735763434748,-1537.54,0.00010958,2]
[347398216,1735763434758,-500.0,0.00010958,2]
[347398217,1735763434767,-1022.5,0.00010958,2]
[347398218,1735763434776,-514.4,0.00010958,2]
[347398219,1735763434786,-1327.64,0.00010958,2]
[347398220,1735763434795,-1695.74,0.00010958,2]
[347398221,1735763434804,-500.0,0.00010958,2]
[347398222,1735763434813,-500.0,0.00010958,2]
[347398223,1735763434822,-645.1,0.00010958,2]
[347398224,1735763434831,-850.05,0.00010958,2]
[347398225,1735763434839,-2442.51,0.00010958,2]
[347398226,1735763434848,-500.0,0.00010958,2]
[347398227,1735763434857,-500.0,0.00010958,2]
[347398228,1735763434867,-2769.67,0.00010958,2]
[347398229,1735763434876,-1192.87,0.00010958,2]
[347398230,1735763434885,-773.11,0.00010958,2]
[347398231,1735763434898,-529.18,0.00010958,2]
[347398232,1735763434907,-500.0,0.00010958,2]
[347398233,1735763434915,-500.0,0.00010958,2]
[347398234,1735763434924,-1522.49,0.00010958,2]
[347398235,1735763434933,-1210.0,0.00010958,2]
[347398236,1735763434943,-500.0,0.00010958,2]
[347398237,1735763434952,-500.0,0.00010958,2]
[347398238,1735763434961,-500.0,0.00010958,2]
[347398239,1735763434970,-734.57,0.00010958,2]
[347398240,1735763434979,-500.0,0.00010958,2]
[347398241,1735763434988,-2019.03,0.00010958,2]
[347398242,1735763434997,-1703.0,0.00010958,2]
[347398243,1735763435006,-8016.86,0.00010958,2]
[347398244,1735763435015,-500.0,0.00010958,2]
[347398245,1735763435024,-896.91,0.00010958,2]
[347398246,1735763435033,-500.0,0.00010958,2]
[347398247,1735763435042,-2891.68,0.00010958,2]
[347398248,1735763435051,-575.31,0.00010958,2]
[347398249,1735763435060,-500.0,0.00010958,2]
[347398250,1735763435069,-1312.86,0.00010958,2]
[347398251,1735763435078,-500.0,0.00010958,2]
[347398252,1735763435087,-500.0,0.00010958,2]
[347398253,1735763435096,-1083.46,0.00010958,2]
[347398254,1735763435105,-3761.8,0.00010958,2]
[347398255,1735763435114,-500.0,0.00010958,2]
[347398256,1735763435123,-500.0,0.00010958,2]
[347398257,1735763435132,-726.47,0.00010958,2]
[347398258,1735763435140,-500.0,0.00010958,2]
[347398259,1735763435150,-519.36,0.00010958,2]
[347398260,1735763435159,-1770.02,0.00010958,2]
[347398261,1735763435168,-500.0,0.00010958,2]
[347398262,1735763435177,-500.0,0.00010958,2]
[347398263,1735763435186,-500.0,0.00010958,2]
[347398264,1735763435195,-572.19,0.00010958,2]
[347398265,1735763435204,-595.77,0.00010958,2]
[347398266,1735763435213,-513.51,0.00010958,2]
[347398267,1735763435222,-1054.15,0.00010958,2]
[347398268,1735763435232,-500.0,0.00010958,2]
[347398269,1735763435241,-500.0,0.00010958,2]
[347398270,1735763435252,-561.95,0.00010958,2]
[347398271,1735763435262,-500.0,0.00010958,2]
[347398272,1735763435271,-2267.62,0.00010958,2]
[347398273,1735763435280,-791.51,0.00010958,2]
[347398274,1735763435289,-647.81,0.00010958,2]
[347398275,1735763435298,-1226.04,0.00010958,2]
[347398276,1735763435308,-500.0,0.00010958,2]
[347398277,1735763435318,-891.35,0.00010958,2]
[347398278,1735763435327,-500.0,0.00010958,2]
[347398279,1735763435338,-1741.36,0.00010958,2]
[347398280,1735763435348,-711.23,0.00010958,2]
[347398281,1735763435358,-500.0,0.00010958,2]
[347398282,1735763435367,-500.0,0.00010958,2]
[347398283,1735763435376,-500.0,0.00010958,2]
[347398284,1735763435386,-500.0,0.00010958,2]
[347398285,1735763435395,-1599.72,0.00010958,2]
[347398286,1735763435404,-1040.84,0.00010958,2]
[347398287,1735763435413,-500.0,0.00010958,2]
[347398288,1735763435422,-755.15,0.00010958,2]
[347398289,1735763435431,-500.0,0.00010958,2]
[347398290,1735763435442,-1035.33,0.00010958,2]
[347398291,1735763435451,-500.0,0.00010958,2]
[347398292,1735763435460,-500.0,0.00010958,2]
[347398293,1735763435468,-598.87,0.00010958,2]
[347398294,1735763435478,-1355.42,0.00010958,2]
[347398295,1735763435487,-500.0,0.00010958,2]
[347398296,1735763435497,-1173.18,0.00010958,2]
[347398297,1735763435507,-1457.81,0.00010958,2]
[347398298,1735763435517,-500.0,0.00010958,2]
[347398299,1735763435526,-500.0,0.00010958,2]
[347398300,1735763435536,-4278.51,0.00010958,2]
[347398301,1735763435546,-1145.85,0.00010958,2]
[347398302,1735763435555,-500.0,0.00010958,2]
[347398303,1735763435563,-1574.92,0.00010958,2]
[347398304,1735763435572,-1411.08,0.00010958,2]
[347398305,1735763435581,-1997.43,0.00010958,2]
[347398306,1735763435590,-686.58,0.00010958,2]
[347398307,1735763435599,-500.0,0.00010958,2]
[347398308,1735763435608,-1014.32,0.00010958,2]
[347398309,1735763435617,-848.1,0.00010958,2]
[347398310,1735763435626,-500.0,0.00010958,2]
[347398311,1735763435635,-500.0,0.00010958,2]
[347398312,1735763435643,-1025.88,0.00010958,2]
[347398313,1735763435652,-1858.86,0.00010958,2]
[347398314,1735763435661,-500.0,0.00010958,2]
[347398315,1735763435671,-500.0,0.00010958,2]
[347398316,1735763435680,-4446.13,0.00010958,2]
[347398317,1735763435690,-979.53,0.00010958,2]
[347398318,1735763435699,-500.0,0.00010958,2]
[347398319,1735763435708,-698.56,0.00010958,2]
[347398320,1735763435717,-509.05,0.00010958,2]
[347398321,1735763435727,-500.0,0.00010958,2]
[347398322,1735763435736,-500.0,0.00010958,2]
[347398323,1735763435745,-1446.03,0.00010958,2]
[347398324,1735763435755,-736.06,0.00010958,2]
[347398325,1735763435764,-864.94,0.00010958,2]
[347398326,1735763435774,-500.0,0.00010958,2]
[347398327,1735763435783,-500.0,0.00010958,2]
[347398328,1735763435792,-500.0,0.00010958,2]
[347398329,1735763435801,-500.0,0.00010958,2]
[347398330,1735763435810,-2275.26,0.00010958,2]
[347398331,1735763435820,-500.0,0.00010958,2]
[347398332,1735763435829,-500.0,0.00010958,2]
[347398333,1735763435838,-500.0,0.00010958,2]
[347398334,1735763435847,-1331.54,0.00010958,2]
[347398335,1735763435855,-500.0,0.00010958,2]
[347398336,1735763435864,-500.0,0.00010958,2]
[347398337,1735763435873,-500.0,0.00010958,2]
[347398338,1735763435882,-1470.53,0.00010958,2]
[347398339,1735763435894,-500.0,0.00010958,2]
[347398340,1735763435904,-710.39,0.00010958,2]
[347398341,1735763435913,-1946.25,0.00010958,2]
[347398342,1735763435922,-1894.04,0.00010958,2]
[347398343,1735763435931,-500.0,0.00010958,2]
[347398344,1735763435948,-500.0,0.00010958,2]
[347398345,1735763435958,-500.0,0.00010958,2]
[347398346,1735763435967,-1037.65,0.00010958,2]
[347398347,1735763435976,-585.6,0.00010958,2]
[347398348,1735763435985,-500.0,0.00010958,2]
[347398349,1735763435994,-500.0,0.00010958,2]
[347398350,1735763436004,-656.93,0.00010958,2]
[347398351,1735763436013,-500.0,0.00010958,2]
[347398352,1735763436022,-1482.17,0.00010958,2]
[347398353,1735763436032,-1328.21,0.00010958,2]
[347398354,1735763436042,-500.0,0.00010958,2]
[347398355,1735763436052,-500.0,0.00010958,2]
[347398356,1735763436061,-543.63,0.00010958,2]
[347398357,1735763436070,-1302.37,0.00010958,2]
[347398358,1735763436079,-500.0,0.00010958,2]
[347398359,1735763436089,-500.0,0.00010958,2]
[347398360,1735763436100,-500.0,0.00010958,2]
[347398361,1735763436109,-500.0,0.00010958,2]
[347398362,1735763436120,-500.0,0.00010958,2]
[347398363,1735763436130,-500.0,0.00010958,2]
[347398364,1735763436140,-1528.88,0.00010958,2]
[347398365,1735763436150,-1325.26,0.00010958,2]
[347398366,1735763436160,-3358.5,0.00010958,2]
[347398367,1735763436169,-500.0,0.00010958,2]
[347398368,1735763436178,-500.0,0.00010958,2]
[347398369,1735763436189,-500.0,0.00010958,2]
[347398370,1735763436198,-815.96,0.00010958,2]
[347398371,1735763436207,-500.0,0.00010958,2]
[347398372,1735763436216,-500.0,0.00010958,2]
[347398373,1735763436225,-622.62,0.00010958,2]
[347398374,1735763436234,-1453.45,0.00010958,2]
[347398375,1735763436244,-1144.83,0.00010958,2]
[347398376,1735763436253,-1484.99,0.00010958,2]
[347398377,1735763436262,-500.0,0.00010958,2]
[347398378,1735763436271,-735.58,0.00010958,2]
[347398379,1735763436280,-2131.25,0.00010958,2]
[347398380,1735763436289,-500.0,0.00010958,2]
[347398381,1735763436298,-500.0,0.00010958,2]
[347398382,1735763436307,-2699.62,0.00010958,2]
[347398383,1735763436316,-500.0,0.00010958,2]
[347398384,1735763436325,-673.83,0.00010958,2]
[347398385,1735763436334,-500.0,0.00010958,2]
[347398386,1735763436343,-537.97,0.00010958,2]
[347398387,1735763436352,-1213.82,0.00010958,2]
[347398388,1735763436361,-1572.39,0.00010958,2]
[347398389,1735763436370,-500.0,0.00010958,2]
[347398390,1735763436379,-784.69,0.00010958,2]
[347398391,1735763436389,-916.1,0.00010958,2]
[347398392,1735763436398,-500.0,0.00010958,2]
[347398393,1735763436407,-1074.49,0.00010958,2]
[347398394,1735763436416,-846.45,0.00010958,2]
[347398395,1735763436425,-1191.65,0.00010958,2]
[347398396,1735763436434,-500.0,0.00010958,2]
[347398397,1735763436443,-500.0,0.00010958,2]
[347398398,1735763436452,-798.8,0.00010958,2]
[347398399,1735763436463,-614.91,0.00010958,2]
[347398400,1735763436472,-598.18,0.00010958,2]
[347398401,1735763436481,-1895.1,0.00010958,2]
[347398402,1735763436490,-500.0,0.00010958,2]
[347398403,1735763436499,-9228.53,0.00010958,2]
[347398404,1735763436508,-500.0,0.00010958,2]
[347398405,1735763436517,-500.0,0.00010958,2]
[347398406,1735763436526,-500.0,0.00010958,2]
[347398407,1735763436537,-1915.86,0.00010958,2]
[347398408,1735763436547,-500.0,0.00010958,2]
[347398409,1735763436556,-500.0,0.00010958,2]
[347398410,1735763436565,-663.66,0.00010958,2]
[347398411,1735763436574,-779.33,0.00010958,2]
[347398412,1735763436583,-500.0,0.00010958,2]
[347398413,1735763436592,-8747.58,0.00010958,2]
[347398414,1735763436602,-500.0,0.00010958,2]
[347398415,1735763436611,-1330.69,0.00010958,2]
[347398416,1735763436620,-3945.55,0.00010958,2]
[347398417,1735763436629,-500.0,0.00010958,2]
[347398418,1735763436638,-500.0,0.00010958,2]
[347398419,1735763436648,-1277.93,0.00010958,2]
[347398420,1735763436657,-691.88,0.00010958,2]
[347398421,1735763436666,-500.0,0.00010958,2]
[347398422,1735763436675,-837.18,0.00010958,2]
[347398423,1735763436685,-1846.46,0.00010958,2]
[347398424,1735763436694,-1153.84,0.00010958,2]
[347398425,1735763436703,-934.24,0.00010958,2]
[347398426,1735763436712,-4962.3,0.00010958,2]
[347398427,1735763436722,-500.0,0.00010958,2]
[347398428,1735763436732,-1355.86,0.00010958,2]
[347398429,1735763436741,-500.0,0.00010958,2]
[347398430,1735763436750,-1017.83,0.00010958,2]
[347398431,1735763436759,-550.74,0.00010958,2]
[347398432,1735763436768,-871.46,0.00010958,2]
[347398433,1735763436777,-1942.62,0.00010958,2]
[347398434,1735763436786,-1193.7,0.00010958,2]
[347398435,1735763436795,-500.0,0.00010958,2]
[347398436,1735763436804,-2100.91,0.00010958,2]
[347398437,1735763436813,-500.0,0.00010958,2]
[347398438,1735763436822,-1710.95,0.00010958,2]
[347398439,1735763436830,-1135.24,0.00010958,2]
[347398440,1735763436839,-182.84734115,0.00010958,2]
[347398441,1735763436848,-845.68,0.00010958,2]
[347398442,1735763436857,-1022.31,0.00010958,2]
[347398443,1735763436866,-897.8,0.00010958,2]
[347398444,1735763436875,-500.0,0.00010958,2]
[347398445,1735763436884,-527.37190023,0.00010958,2]
[347398446,1735763436898,-1130.77,0.00010958,2]
[347398447,1735763436906,-3268.84,0.00010958,2]
[347398448,1735763436915,-12979.92,0.00010958,2]
[347398449,1735763436924,-725.4396306,0.00010958,2]
[347398450,1735763436957,-236.6003694,0.00010958,2]
[347398451,1735763436966,-500.0,0.00010958,2]
[347398452,1735763436976,-84.64873719,0.00010958,2]
[347398453,1735763437013,-255.97559429,0.00010958,2]
[347398454,1735763437030,-6045.63566852,0.00010958,2]
[347398455,1735763437039,-1222.77,0.00010958,2]
[347398456,1735763437048,-500.0,0.00010958,2]
[347398457,1735763437057,-500.0,0.00010958,2]
[347398458,1735763437066,-4733.29,0.00010958,2]
[347398459,1735763437075,-1972.98,0.00010958,2]
[347398460,1735763437084,-500.0,0.00010958,2]
[347398461,1735763437094,-500.0,0.00010958,2]
[347398462,1735763437103,-953.14,0.00010958,2]
[347398463,1735763437112,-3859.41,0.00010958,2]
[347398464,1735763437121,-1066.26,0.00010958,2]
[347398465,1735763437130,-1210.49,0.00010958,2]
[347398466,1735763437139,-610.4,0.00010958,2]
[347398467,1735763437147,-1968.73,0.00010958,2]
[347398468,1735763437156,-926.77,0.00010958,2]
[347398469,1735763437165,-736.59,0.00010958,2]
[347398470,1735763437174,-500.0,0.00010958,2]
[347398471,1735763437419,-1023.94,0.00010958,2]
[347398472,1735763437428,-1814.54,0.00010958,2]
[347398473,1735763437439,-500.0,0.00010958,2]
[347398474,1735763437448,-500.0,0.00010958,2]
[347398475,1735763437457,-500.0,0.00010958,2]
[347398476,1735763437466,-827.21,0.00010958,2]
[347398477,1735763437475,-1694.6,0.00010958,2]
[347398478,1735763437484,-1391.79,0.00010958,2]
[347398479,1735763437493,-500.0,0.00010958,2]
[347398481,1735763437503,-500.0,0.00010958,2]
[347398482,1735763437511,-500.0,0.00010958,2]
[347398483,1735763437520,-500.0,0.00010958,2]
[347398484,1735763437529,-3076.07,0.00010958,2]
[347398485,1735763437538,-937.55,0.00010958,2]
[347398486,1735763437547,-500.0,0.00010958,2]
[347398487,1735763437556,-500.0,0.00010958,2]
[347398488,1735763437565,-7767.89,0.00010958,2]
[347398489,1735763437574,-2791.25,0.00010958,2]
[347398490,1735763437583,-1495.93,0.00010958,2]
[347398491,1735763437592,-500.0,0.00010958,2]
[347398492,1735763437601,-500.0,0.00010958,2]
[347398493,1735763437610,-643.85,0.00010958,2]
[347398494,1735763437619,-500.0,0.00010958,2]
[347398495,1735763437628,-500.0,0.00010958,2]
[347398496,1735763437638,-832.83,0.00010958,2]
[347398497,1735763437647,-1993.75,0.00010958,2]
[347398498,1735763437657,-500.0,0.00010958,2]
[347398499,1735763437666,-500.0,0.00010958,2]
[347398500,1735763437675,-500.0,0.00010958,2]
[347398501,1735763437685,-1030.28,0.00010958,2]
[347398502,1735763437695,-1220.34,0.00010958,2]
[347398503,1735763437704,-250.47941875,0.00010958,2]
[347398504,1735763437714,-874.67,0.00010958,2]
[347398505,1735763437724,-2624.76,0.00010958,2]
[347398506,1735763437733,-1180.79,0.00010958,2]
[347398507,1735763437742,-2847.78,0.00010958,2]
[347398508,1735763437752,-500.0,0.00010958,2]
[347398509,1735763437762,-500.0,0.00010958,2]
[347398510,1735763437771,-500.0,0.00010958,2]
[347398511,1735763437780,-500.0,0.00010958,2]
[347398512,1735763437789,-500.0,0.00010958,2]
[347398513,1735763437799,-1052.08,0.00010958,2]
[347398514,1735763437808,-638.53,0.00010958,2]
[347398515,1735763437817,-597.32,0.00010958,2]
[347398516,1735763437827,-8261.83,0.00010958,2]
[347398517,1735763437836,-2699.45,0.00010958,2]
[347398518,1735763437847,-1186.61,0.00010958,2]
[347398519,1735763437858,-500.0,0.00010958,2]
[347398520,1735763437867,-1977.19,0.00010958,2]
[347398521,1735763437876,-1239.57,0.00010958,2]
[347398522,1735763437886,-5487.02,0.00010958,2]
[347398523,1735763437896,-500.0,0.00010958,2]
[347398524,1735763437906,-1275.66,0.00010958,2]
[347398525,1735763437915,-500.0,0.00010958,2]
[347398526,1735763437924,-500.0,0.00010958,2]
[347398527,1735763437934,-500.0,0.00010958,2]
[347398528,1735763437945,-1476.22,0.00010958,2]
[347398529,1735763437954,-903.1,0.00010958,2]
[347398530,1735763437964,-1230.46,0.00010958,2]
[347398531,1735763437974,-1392.71,0.00010958,2]